[Event "*** Titled Tuesday Blitz"]
[Site "Chess.com"]
[Date "2019.03.05"]
[Round "5"]
[White "Msb2"]
[Black "riconaipe"]
[Result "1-0"]
[WhiteElo "2789"]
[BlackElo "2438"]
[TimeControl "180+2"]
[EndTime "14:09:20 PST"]
[Termination "Msb2 won by resignation"]

1. d4 {[%clk 0:03:01.9]} 1... d5 {[%clk 0:02:59.5]} 2. c4 {[%clk 0:03:02.5]}
2... e6 {[%clk 0:03:00]} 3. Nf3 {[%clk 0:03:01.1]} 3... Nf6 {[%clk 0:03:00.3]}
4. g3 {[%clk 0:03:02.4]} 4... Be7 {[%clk 0:03:01.2]} 5. Bg2 {[%clk 0:03:04]}
5... O-O {[%clk 0:03:02.7]} 6. O-O {[%clk 0:03:05.9]} 6... b6 {[%clk 0:03:00.3]}
7. cxd5 {[%clk 0:03:06.5]} 7... exd5 {[%clk 0:02:59.8]} 8. Nc3 {[%clk 0:03:08]}
8... Bb7 {[%clk 0:03:01.1]} 9. Bf4 {[%clk 0:03:08.8]} 9... Nbd7 {[%clk
0:03:01.4]} 10. Rc1 {[%clk 0:03:10.4]} 10... a6 {[%clk 0:02:57.4]} 11. Ne5
{[%clk 0:03:09.3]} 11... Nxe5 {[%clk 0:02:56.2]} 12. dxe5 {[%clk 0:03:06.4]}
12... Ne4 {[%clk 0:02:55.5]} 13. Nxe4 {[%clk 0:02:53]} 13... dxe4 {[%clk
0:02:57.4]} 14. Qc2 {[%clk 0:02:54.4]} 14... Qd5 {[%clk 0:02:35.2]} 15. Qxc7
{[%clk 0:02:31.6]} 15... Bd8 {[%clk 0:01:56.7]} 16. Qc4 {[%clk 0:01:49.1]} 16...
Qxc4 {[%clk 0:01:56.4]} 17. Rxc4 {[%clk 0:01:51]} 17... b5 {[%clk 0:01:57.8]}
18. Rd4 {[%clk 0:01:52.5]} 18... Bb6 {[%clk 0:01:53.8]} 19. Rd7 {[%clk
0:01:50.9]} 19... Ra7 {[%clk 0:01:10.2]} 20. Be3 {[%clk 0:01:48.3]} 20... Bxe3
{[%clk 0:01:06.9]} 21. fxe3 {[%clk 0:01:50.2]} 21... Re8 {[%clk 0:00:41.1]} 22.
Rfxf7 {[%clk 0:01:46]} 1-0

[Event "*** Titled Tuesday Blitz"]
[Site "Chess.com"]
[Date "2019.03.05"]
[Round "5"]
[White "KhalilMousavi77"]
[Black "Shant_Sargsyan"]
[Result "1-0"]
[WhiteElo "2676"]
[BlackElo "2907"]
[TimeControl "180+2"]
[EndTime "14:09:26 PST"]
[Termination "KhalilMousavi77 won by resignation"]

1. c4 {[%clk 0:03:01.7]} 1... e5 {[%clk 0:03:00.6]} 2. Nc3 {[%clk 0:03:02.6]}
2... Nf6 {[%clk 0:03:02]} 3. Nf3 {[%clk 0:02:58.5]} 3... Nc6 {[%clk 0:03:03.3]}
4. e4 {[%clk 0:03:00.1]} 4... Bd6 {[%clk 0:03:04.4]} 5. g3 {[%clk 0:02:59.9]}
5... O-O {[%clk 0:03:05.2]} 6. Bg2 {[%clk 0:03:01.7]} 6... Re8 {[%clk
0:03:06.8]} 7. O-O {[%clk 0:03:03]} 7... Bc5 {[%clk 0:03:08.6]} 8. d3 {[%clk
0:03:02.8]} 8... d6 {[%clk 0:03:10]} 9. h3 {[%clk 0:03:02.9]} 9... h6 {[%clk
0:03:11.2]} 10. Be3 {[%clk 0:03:02]} 10... a5 {[%clk 0:03:12.4]} 11. Nd5 {[%clk
0:02:58]} 11... Be6 {[%clk 0:03:07.9]} 12. Kh2 {[%clk 0:02:54.6]} 12... b6
{[%clk 0:03:05.7]} 13. Nh4 {[%clk 0:02:49.1]} 13... Nd4 {[%clk 0:03:00.9]} 14.
Qd2 {[%clk 0:02:44.2]} 14... Bxd5 {[%clk 0:02:30.7]} 15. cxd5 {[%clk 0:02:36.2]}
15... g5 {[%clk 0:02:28.3]} 16. Bxd4 {[%clk 0:02:20.8]} 16... gxh4 {[%clk
0:01:50.3]} 17. Bxc5 {[%clk 0:02:16.7]} 17... dxc5 {[%clk 0:01:50.6]} 18. Qxh6
{[%clk 0:02:13.3]} 18... Qd6 {[%clk 0:01:51.4]} 19. Qxh4 {[%clk 0:02:09.2]}
19... Kg7 {[%clk 0:01:44.3]} 20. f4 {[%clk 0:02:07.1]} 20... Nh7 {[%clk
0:01:42.5]} 21. fxe5 {[%clk 0:01:55.9]} 21... Rxe5 {[%clk 0:01:39.6]} 22. Rxf7+
{[%clk 0:01:43.9]} 22... Kxf7 {[%clk 0:01:40.9]} 23. Qxh7+ {[%clk 0:01:44.6]}
23... Ke8 {[%clk 0:01:38.5]} 24. Qh8+ {[%clk 0:01:45.3]} 24... Ke7 {[%clk
0:01:27.7]} 25. Qxa8 {[%clk 0:01:42.5]} 25... Rg5 {[%clk 0:01:29.1]} 26. e5
{[%clk 0:01:35.6]} 26... Qxe5 {[%clk 0:01:28.4]} 27. d6+ {[%clk 0:01:36.4]}
27... Kxd6 {[%clk 0:01:26.7]} 28. Qc6+ {[%clk 0:01:36.5]} 28... Ke7 {[%clk
0:01:28]} 29. Qe4 {[%clk 0:01:38]} 1-0

[Event "*** Titled Tuesday Blitz"]
[Site "Chess.com"]
[Date "2019.03.05"]
[Round "5"]
[White "Andrew-FB00"]
[Black "NateSolon"]
[Result "0-1"]
[WhiteElo "1848"]
[BlackElo "2556"]
[TimeControl "180+2"]
[EndTime "14:09:49 PST"]
[Termination "NateSolon won by resignation"]

1. e4 {[%clk 0:03:01.9]} 1... c5 {[%clk 0:02:59.5]} 2. Nf3 {[%clk 0:03:02.2]}
2... d6 {[%clk 0:03:00.9]} 3. Bb5+ {[%clk 0:03:02.2]} 3... Nd7 {[%clk
0:03:01.6]} 4. d4 {[%clk 0:03:02.1]} 4... Nf6 {[%clk 0:03:00.4]} 5. Nc3 {[%clk
0:02:58.3]} 5... a6 {[%clk 0:02:58]} 6. Bxd7+ {[%clk 0:02:58.4]} 6... Nxd7
{[%clk 0:02:59]} 7. O-O {[%clk 0:02:55]} 7... e6 {[%clk 0:02:56.8]} 8. Re1
{[%clk 0:02:52.4]} 8... Be7 {[%clk 0:02:57.5]} 9. Be3 {[%clk 0:02:49.2]} 9...
O-O {[%clk 0:02:55.6]} 10. Qd2 {[%clk 0:02:48.8]} 10... b5 {[%clk 0:02:53.2]}
11. a3 {[%clk 0:02:44.6]} 11... Bb7 {[%clk 0:02:52.9]} 12. d5 {[%clk 0:02:38.1]}
12... e5 {[%clk 0:02:48.3]} 13. Ne2 {[%clk 0:02:35.8]} 13... f5 {[%clk
0:02:42.6]} 14. exf5 {[%clk 0:02:33.2]} 14... Rxf5 {[%clk 0:02:44.5]} 15. Ng3
{[%clk 0:02:31.9]} 15... Rf8 {[%clk 0:02:19.5]} 16. Ne4 {[%clk 0:02:05.3]} 16...
Nb6 {[%clk 0:02:19.4]} 17. Nc3 {[%clk 0:02:05]} 17... Nc4 {[%clk 0:02:18]} 18.
Qc1 {[%clk 0:02:02.1]} 18... Qe8 {[%clk 0:02:15.6]} 19. b3 {[%clk 0:01:57.2]}
19... Nb6 {[%clk 0:02:15]} 20. Qd2 {[%clk 0:01:53.1]} 20... Qh5 {[%clk
0:02:06.3]} 21. Rad1 {[%clk 0:01:46.5]} 21... Rxf3 {[%clk 0:01:50.5]} 22. gxf3
{[%clk 0:01:45.7]} 22... Qxf3 {[%clk 0:01:51.2]} 23. Qe2 {[%clk 0:01:27.7]}
23... Qf7 {[%clk 0:01:48.1]} 24. Qg4 {[%clk 0:01:20.2]} 24... Nxd5 {[%clk
0:01:44.7]} 25. Nxd5 {[%clk 0:01:20.1]} 25... Bxd5 {[%clk 0:01:46.6]} 26. Rd2
{[%clk 0:01:00.2]} 26... Rf8 {[%clk 0:01:43.9]} 27. Red1 {[%clk 0:00:58.2]}
27... Bf3 {[%clk 0:01:43.5]} 28. Qg3 {[%clk 0:00:51.9]} 28... Bxd1 {[%clk
0:01:39.5]} 29. Rxd1 {[%clk 0:00:52.9]} 29... Qf3 {[%clk 0:01:39.9]} 0-1

[Event "*** Titled Tuesday Blitz"]
[Site "Chess.com"]
[Date "2019.03.05"]
[Round "5"]
[White "MishkaFighter"]
[Black "RegZryt"]
[Result "1-0"]
[WhiteElo "2335"]
[BlackElo "2443"]
[TimeControl "180+2"]
[EndTime "14:09:54 PST"]
[Termination "MishkaFighter won by checkmate"]

1. d4 {[%clk 0:03:01.9]} 1... d5 {[%clk 0:02:59.8]} 2. c4 {[%clk 0:02:59.8]}
2... e6 {[%clk 0:03:01]} 3. Nf3 {[%clk 0:03:00.5]} 3... Nf6 {[%clk 0:03:02.1]}
4. g3 {[%clk 0:03:01]} 4... Be7 {[%clk 0:03:03.3]} 5. Bg2 {[%clk 0:03:01.8]}
5... O-O {[%clk 0:03:04.4]} 6. O-O {[%clk 0:03:03.5]} 6... dxc4 {[%clk
0:03:04.8]} 7. Ne5 {[%clk 0:03:04.9]} 7... Nc6 {[%clk 0:03:04.9]} 8. Nxc6 {[%clk
0:03:05.7]} 8... bxc6 {[%clk 0:03:06.8]} 9. Na3 {[%clk 0:03:06.4]} 9... Bxa3
{[%clk 0:03:07.2]} 10. bxa3 {[%clk 0:03:08.3]} 10... Ba6 {[%clk 0:03:08.8]} 11.
Qd2 {[%clk 0:03:07.8]} 11... Rb8 {[%clk 0:03:05.7]} 12. Qa5 {[%clk 0:03:08.8]}
12... Qc8 {[%clk 0:03:05.7]} 13. Rd1 {[%clk 0:03:08.9]} 13... Rb6 {[%clk
0:03:02]} 14. a4 {[%clk 0:03:03.2]} 14... Rd8 {[%clk 0:03:01.8]} 15. Bg5 {[%clk
0:03:01.1]} 15... Rd5 {[%clk 0:02:31.6]} 16. Bxd5 {[%clk 0:02:56.7]} 16... cxd5
{[%clk 0:02:33.5]} 17. Bxf6 {[%clk 0:02:57.7]} 17... gxf6 {[%clk 0:02:35.4]} 18.
Rab1 {[%clk 0:02:58.1]} 18... f5 {[%clk 0:02:22.9]} 19. Qc5 {[%clk 0:02:55.6]}
19... Qd7 {[%clk 0:02:20.5]} 20. a5 {[%clk 0:02:51.3]} 20... Rc6 {[%clk
0:02:15.3]} 21. Qxa7 {[%clk 0:02:45.3]} 21... c3 {[%clk 0:02:16.7]} 22. Rb6
{[%clk 0:02:27.1]} 22... Bxe2 {[%clk 0:01:52.2]} 23. Qa8+ {[%clk 0:02:25.6]}
23... Kg7 {[%clk 0:01:42.7]} 24. Qxc6 {[%clk 0:02:24.7]} 24... Qe7 {[%clk
0:01:29.2]} 25. Re1 {[%clk 0:02:10.5]} 25... cxb6 {[%clk 0:01:25.9]} 26. Rxe2
{[%clk 0:02:09.2]} 26... bxa5 {[%clk 0:01:25.7]} 27. Qxc3 {[%clk 0:02:09.9]}
27... a4 {[%clk 0:01:17.6]} 28. Qe3 {[%clk 0:02:06.7]} 28... h6 {[%clk
0:01:15.3]} 29. Qe5+ {[%clk 0:02:07.7]} 29... Kg6 {[%clk 0:01:10.6]} 30. Rc2
{[%clk 0:02:07]} 30... Qb7 {[%clk 0:01:05.7]} 31. Rc7 {[%clk 0:02:04.2]} 31...
Qb1+ {[%clk 0:01:06.2]} 32. Kg2 {[%clk 0:02:05.7]} 32... Qxa2 {[%clk 0:00:50]}
33. Rc8 {[%clk 0:02:06]} 33... Qb3 {[%clk 0:00:40.4]} 34. Rg8+ {[%clk
0:02:06.1]} 34... Kh5 {[%clk 0:00:41.4]} 35. g4+ {[%clk 0:02:07.6]} 35... Kh4
{[%clk 0:00:42.7]} 36. Qg3+ {[%clk 0:02:08.9]} 36... Qxg3+ {[%clk 0:00:42.5]}
37. fxg3# {[%clk 0:02:10.8]} 1-0

[Event "*** Titled Tuesday Blitz"]
[Site "Chess.com"]
[Date "2019.03.05"]
[Round "5"]
[White "SerGo055"]
[Black "StanislavNovikov"]
[Result "1-0"]
[WhiteElo "2489"]
[BlackElo "2638"]
[TimeControl "180+2"]
[EndTime "14:09:56 PST"]
[Termination "SerGo055 won by resignation"]

1. d4 {[%clk 0:03:01.9]} 1... g6 {[%clk 0:03:00.8]} 2. Nf3 {[%clk 0:03:02.7]}
2... Bg7 {[%clk 0:03:02.1]} 3. c4 {[%clk 0:03:03.9]} 3... d6 {[%clk 0:03:03.4]}
4. Nc3 {[%clk 0:03:04.5]} 4... Nf6 {[%clk 0:03:04.9]} 5. Bg5 {[%clk 0:03:05]}
5... O-O {[%clk 0:03:04.7]} 6. Qd2 {[%clk 0:03:05.5]} 6... c6 {[%clk 0:03:04.3]}
7. Bh6 {[%clk 0:03:05.8]} 7... Nbd7 {[%clk 0:03:03.5]} 8. h4 {[%clk 0:03:06.4]}
8... e5 {[%clk 0:03:00.9]} 9. h5 {[%clk 0:03:06.2]} 9... e4 {[%clk 0:03:00.6]}
10. hxg6 {[%clk 0:02:58.7]} 10... fxg6 {[%clk 0:02:58.4]} 11. Bxg7 {[%clk
0:02:58.9]} 11... Kxg7 {[%clk 0:02:59.5]} 12. Ng5 {[%clk 0:02:59.4]} 12... Qe8
{[%clk 0:02:36.6]} 13. Ngxe4 {[%clk 0:02:36]} 13... Qe7 {[%clk 0:02:22.1]} 14.
Ng5 {[%clk 0:02:17]} 14... Rh8 {[%clk 0:02:05.1]} 15. O-O-O {[%clk 0:02:03.3]}
15... h6 {[%clk 0:02:05.5]} 16. Nf3 {[%clk 0:02:03.4]} 16... d5 {[%clk
0:02:06.6]} 17. e3 {[%clk 0:02:01.1]} 17... a6 {[%clk 0:01:57]} 18. Kb1 {[%clk
0:02:00.3]} 18... b5 {[%clk 0:01:57.9]} 19. cxd5 {[%clk 0:02:00.9]} 19... cxd5
{[%clk 0:01:59]} 20. Bd3 {[%clk 0:01:47.6]} 20... Bb7 {[%clk 0:01:53.2]} 21. Ne2
{[%clk 0:01:45.7]} 21... Ne4 {[%clk 0:01:49]} 22. Qe1 {[%clk 0:01:37.9]} 22...
b4 {[%clk 0:01:42.4]} 23. Nf4 {[%clk 0:01:36.8]} 23... a5 {[%clk 0:01:34.6]} 24.
Nh4 {[%clk 0:01:36.8]} 24... Nf8 {[%clk 0:01:24]} 25. Nfxg6 {[%clk 0:01:36.4]}
25... Nxg6 {[%clk 0:01:23.8]} 26. Nf5+ {[%clk 0:01:36.9]} 26... Kf6 {[%clk
0:01:24.6]} 27. Nxe7 {[%clk 0:01:37.7]} 27... Nxe7 {[%clk 0:01:25.9]} 28. f3
{[%clk 0:01:37.2]} 28... Nd6 {[%clk 0:01:25.1]} 29. Qh4+ {[%clk 0:01:26.8]}
29... Kf7 {[%clk 0:01:24.1]} 30. Qf4+ {[%clk 0:01:26.8]} 30... Ke6 {[%clk
0:01:24.1]} 31. Rxh6+ {[%clk 0:01:13.8]} 31... Rxh6 {[%clk 0:01:26]} 32. Qxh6+
{[%clk 0:01:14.9]} 32... Kd7 {[%clk 0:01:27.7]} 33. Qh3+ {[%clk 0:01:14.5]} 1-0

[Event "*** Titled Tuesday Blitz"]
[Site "Chess.com"]
[Date "2019.03.05"]
[Round "5"]
[White "gunslinger222"]
[Black "tteshan"]
[Result "0-1"]
[WhiteElo "2177"]
[BlackElo "2210"]
[TimeControl "180+2"]
[EndTime "14:09:59 PST"]
[Termination "tteshan won by resignation"]

1. d4 {[%clk 0:03:01.9]} 1... d5 {[%clk 0:03:01]} 2. c4 {[%clk 0:03:03]} 2...
dxc4 {[%clk 0:03:02.1]} 3. Nf3 {[%clk 0:03:02.3]} 3... Nf6 {[%clk 0:03:02.3]} 4.
e3 {[%clk 0:03:03.2]} 4... Bg4 {[%clk 0:03:02.2]} 5. Bxc4 {[%clk 0:02:57.6]}
5... e6 {[%clk 0:03:02.9]} 6. O-O {[%clk 0:02:52.6]} 6... a6 {[%clk 0:03:00]} 7.
a4 {[%clk 0:02:52.9]} 7... Bd6 {[%clk 0:02:58.8]} 8. Nc3 {[%clk 0:02:49]} 8...
O-O {[%clk 0:02:59.2]} 9. e4 {[%clk 0:02:47.7]} 9... e5 {[%clk 0:02:40.1]} 10.
dxe5 {[%clk 0:02:48.3]} 10... Bxf3 {[%clk 0:02:38.2]} 11. Qxf3 {[%clk
0:02:40.1]} 11... Bxe5 {[%clk 0:02:39]} 12. Rd1 {[%clk 0:02:34.7]} 12... Qe7
{[%clk 0:02:30.8]} 13. Bg5 {[%clk 0:02:34.7]} 13... Qc5 {[%clk 0:02:12.4]} 14.
Bb3 {[%clk 0:02:16.4]} 14... Bxc3 {[%clk 0:02:11.4]} 15. Qxc3 {[%clk 0:01:42.3]}
15... Qxg5 {[%clk 0:02:11.4]} 16. Qxc7 {[%clk 0:01:32.6]} 16... Nc6 {[%clk
0:02:03.7]} 17. Qxb7 {[%clk 0:01:28.5]} 17... Ne5 {[%clk 0:02:04.2]} 18. Qc7
{[%clk 0:00:54]} 18... Rac8 {[%clk 0:01:51.5]} 19. f4 {[%clk 0:00:28.7]} 19...
Qxf4 {[%clk 0:01:30.7]} 20. Bxf7+ {[%clk 0:00:28.6]} 20... Kh8 {[%clk
0:01:24.2]} 0-1

[Event "*** Titled Tuesday Blitz"]
[Site "Chess.com"]
[Date "2019.03.05"]
[Round "5"]
[White "KyronGriffith"]
[Black "PaulfromSPb"]
[Result "0-1"]
[WhiteElo "2343"]
[BlackElo "2610"]
[TimeControl "180+2"]
[EndTime "14:10:00 PST"]
[Termination "PaulfromSPb won by resignation"]

1. e4 {[%clk 0:03:01.9]} 1... c5 {[%clk 0:02:59.4]} 2. Nf3 {[%clk 0:03:02.2]}
2... d6 {[%clk 0:03:00.7]} 3. d4 {[%clk 0:03:03.7]} 3... cxd4 {[%clk 0:03:02.6]}
4. Nxd4 {[%clk 0:03:05.6]} 4... Nf6 {[%clk 0:03:03.7]} 5. Nc3 {[%clk 0:03:07.2]}
5... a6 {[%clk 0:03:05.1]} 6. Bg5 {[%clk 0:03:08.8]} 6... Nbd7 {[%clk
0:03:05.1]} 7. f4 {[%clk 0:03:10.1]} 7... h6 {[%clk 0:02:57.6]} 8. Bh4 {[%clk
0:03:06]} 8... g6 {[%clk 0:02:58.1]} 9. Qe2 {[%clk 0:02:54]} 9... e5 {[%clk
0:02:57.3]} 10. Nf3 {[%clk 0:02:38.3]} 10... Qc7 {[%clk 0:02:52.1]} 11. fxe5
{[%clk 0:02:35.3]} 11... dxe5 {[%clk 0:02:52.4]} 12. O-O-O {[%clk 0:02:35.1]}
12... Bg7 {[%clk 0:02:52.5]} 13. g4 {[%clk 0:02:10.3]} 13... O-O {[%clk
0:02:49.3]} 14. g5 {[%clk 0:02:09.7]} 14... hxg5 {[%clk 0:02:49.7]} 15. Bxg5
{[%clk 0:02:08.5]} 15... b5 {[%clk 0:02:47.6]} 16. h4 {[%clk 0:01:51]} 16... Bb7
{[%clk 0:02:47.8]} 17. Bh3 {[%clk 0:01:38.3]} 17... b4 {[%clk 0:02:43.4]} 18.
Nd5 {[%clk 0:01:29.3]} 18... Nxd5 {[%clk 0:02:39.5]} 19. exd5 {[%clk 0:01:29.4]}
19... e4 {[%clk 0:02:40.9]} 20. Qxe4 {[%clk 0:01:14.4]} 20... b3 {[%clk
0:02:35.4]} 21. axb3 {[%clk 0:01:10.3]} 21... Nc5 {[%clk 0:02:35.7]} 22. Qc4
{[%clk 0:01:07.7]} 22... Qa5 {[%clk 0:02:32.4]} 23. Kb1 {[%clk 0:01:03.5]} 23...
Qb6 {[%clk 0:02:23.3]} 24. Be3 {[%clk 0:01:01.3]} 24... Qf6 {[%clk 0:02:21.7]}
25. Bd4 {[%clk 0:00:56.8]} 25... Qxf3 {[%clk 0:02:22.2]} 26. Bxg7 {[%clk
0:00:57.2]} 26... Kxg7 {[%clk 0:02:17.7]} 27. Qxc5 {[%clk 0:00:58.6]} 27... Rfd8
{[%clk 0:02:15.2]} 28. h5 {[%clk 0:00:55.5]} 28... Rxd5 {[%clk 0:02:14.5]} 29.
h6+ {[%clk 0:00:30.2]} 29... Kh7 {[%clk 0:02:14.6]} 30. Qg1 {[%clk 0:00:05.1]}
30... Rxd1+ {[%clk 0:02:14.8]} 31. Qxd1 {[%clk 0:00:07]} 31... Qxh1 {[%clk
0:02:15]} 0-1

[Event "*** Titled Tuesday Blitz"]
[Site "Chess.com"]
[Date "2019.03.05"]
[Round "5"]
[White "Hikaru"]
[Black "JonahWillow"]
[Result "1-0"]
[WhiteElo "3130"]
[BlackElo "2667"]
[TimeControl "180+2"]
[EndTime "14:10:21 PST"]
[Termination "Hikaru won by resignation"]

1. Nf3 {[%clk 0:03:01.9]} 1... c5 {[%clk 0:03:00.6]} 2. b3 {[%clk 0:03:03.5]}
2... d6 {[%clk 0:02:53.9]} 3. Bb2 {[%clk 0:03:05.4]} 3... e5 {[%clk 0:02:54.3]}
4. e3 {[%clk 0:03:06.4]} 4... Nc6 {[%clk 0:02:53.6]} 5. Bb5 {[%clk 0:03:06.3]}
5... Nf6 {[%clk 0:02:55]} 6. O-O {[%clk 0:03:06.8]} 6... Be7 {[%clk 0:02:51.9]}
7. Bxc6+ {[%clk 0:03:06.5]} 7... bxc6 {[%clk 0:02:53]} 8. d3 {[%clk 0:03:08.4]}
8... O-O {[%clk 0:02:53.8]} 9. h3 {[%clk 0:03:07.4]} 9... h6 {[%clk 0:02:43.4]}
10. c4 {[%clk 0:03:06.5]} 10... Re8 {[%clk 0:02:25.5]} 11. Nc3 {[%clk
0:03:07.4]} 11... Bf8 {[%clk 0:02:26.7]} 12. Ne2 {[%clk 0:03:00]} 12... a5
{[%clk 0:02:22.1]} 13. Ng3 {[%clk 0:02:59.8]} 13... a4 {[%clk 0:02:20.4]} 14.
Nd2 {[%clk 0:02:59.9]} 14... Bd7 {[%clk 0:02:06.6]} 15. Qc2 {[%clk 0:02:59.1]}
15... Qb6 {[%clk 0:02:03.2]} 16. Bc3 {[%clk 0:02:58]} 16... d5 {[%clk
0:01:58.1]} 17. Rab1 {[%clk 0:02:59.1]} 17... axb3 {[%clk 0:01:48]} 18. axb3
{[%clk 0:02:59.8]} 18... Ra3 {[%clk 0:01:32]} 19. Qb2 {[%clk 0:02:55.3]} 19...
Qa6 {[%clk 0:01:16.5]} 20. Ra1 {[%clk 0:02:54.2]} 20... Ra8 {[%clk 0:00:45.7]}
21. Bxe5 {[%clk 0:02:52.6]} 21... Be7 {[%clk 0:00:33]} 22. Rxa3 {[%clk
0:02:52.1]} 22... Qxa3 {[%clk 0:00:33.9]} 23. Ra1 {[%clk 0:02:53.7]} 23... Qxa1+
{[%clk 0:00:30.8]} 24. Qxa1 {[%clk 0:02:55.6]} 24... Rxa1+ {[%clk 0:00:32.3]}
25. Bxa1 {[%clk 0:02:57.5]} 25... Ne8 {[%clk 0:00:31.6]} 26. Nf3 {[%clk
0:02:58.8]} 26... f6 {[%clk 0:00:30.6]} 27. Ne2 {[%clk 0:02:59.1]} 27... Kf7
{[%clk 0:00:23.5]} 28. Nc3 {[%clk 0:02:59.2]} 28... Ke6 {[%clk 0:00:19.3]} 29.
Na4 {[%clk 0:02:59.6]} 29... Nc7 {[%clk 0:00:15.9]} 30. Bb2 {[%clk 0:02:54.9]}
30... Na6 {[%clk 0:00:15.9]} 31. Ba3 {[%clk 0:02:56]} 31... Nb4 {[%clk
0:00:13.6]} 32. Bxb4 {[%clk 0:02:54.7]} 32... cxb4 {[%clk 0:00:15.5]} 33. Nd4+
{[%clk 0:02:53]} 33... Kd6 {[%clk 0:00:11.6]} 34. c5+ {[%clk 0:02:52.4]} 34...
Kc7 {[%clk 0:00:11.4]} 35. Nc2 {[%clk 0:02:54.3]} 35... d4 {[%clk 0:00:03.6]}
36. Nxd4 {[%clk 0:02:52.8]} 36... Be8 {[%clk 0:00:04.7]} 37. Ne6+ {[%clk
0:02:48.2]} 37... Kd7 {[%clk 0:00:05.7]} 38. Nxg7 {[%clk 0:02:49.4]} 38... Bf7
{[%clk 0:00:07.3]} 39. Nb6+ {[%clk 0:02:49]} 39... Kc7 {[%clk 0:00:07.2]} 40.
Nc4 {[%clk 0:02:50.9]} 40... Bxc5 {[%clk 0:00:08.9]} 41. Nf5 {[%clk 0:02:52]}
41... h5 {[%clk 0:00:08.9]} 42. Kf1 {[%clk 0:02:51.4]} 42... Bf8 {[%clk
0:00:07]} 43. e4 {[%clk 0:02:50.6]} 43... Be6 {[%clk 0:00:06.6]} 44. f3 {[%clk
0:02:51.5]} 1-0

[Event "*** Titled Tuesday Blitz"]
[Site "Chess.com"]
[Date "2019.03.05"]
[Round "5"]
[White "alpasya2009"]
[Black "Supernotar"]
[Result "1-0"]
[WhiteElo "2556"]
[BlackElo "2527"]
[TimeControl "180+2"]
[EndTime "14:10:39 PST"]
[Termination "alpasya2009 won by checkmate"]

1. d4 {[%clk 0:03:01.9]} 1... d5 {[%clk 0:02:54.9]} 2. c4 {[%clk 0:03:03.2]}
2... dxc4 {[%clk 0:02:55.9]} 3. e3 {[%clk 0:03:03.3]} 3... Nf6 {[%clk
0:02:56.7]} 4. Bxc4 {[%clk 0:03:02.9]} 4... e6 {[%clk 0:02:57.8]} 5. Nf3 {[%clk
0:03:01.8]} 5... a6 {[%clk 0:02:58.8]} 6. O-O {[%clk 0:03:01.6]} 6... b5 {[%clk
0:02:59.7]} 7. Bd3 {[%clk 0:03:01.1]} 7... Bb7 {[%clk 0:03:00.9]} 8. a4 {[%clk
0:02:54.9]} 8... b4 {[%clk 0:03:01.8]} 9. Nbd2 {[%clk 0:02:56.1]} 9... Nbd7
{[%clk 0:03:02.4]} 10. e4 {[%clk 0:02:54.4]} 10... Be7 {[%clk 0:02:56.9]} 11. e5
{[%clk 0:02:52.6]} 11... Nd5 {[%clk 0:02:57.8]} 12. Nc4 {[%clk 0:02:52.3]} 12...
c5 {[%clk 0:02:55.7]} 13. Bg5 {[%clk 0:02:48.6]} 13... O-O {[%clk 0:02:37.8]}
14. Bxe7 {[%clk 0:02:48.4]} 14... Qxe7 {[%clk 0:02:35.5]} 15. Nd6 {[%clk
0:02:50.3]} 15... Rfb8 {[%clk 0:01:37.9]} 16. Qc2 {[%clk 0:02:36.8]} 16... cxd4
{[%clk 0:01:31.3]} 17. Bxh7+ {[%clk 0:02:37.7]} 17... Kh8 {[%clk 0:01:13.1]} 18.
Rfe1 {[%clk 0:02:18.6]} 18... b3 {[%clk 0:00:49.6]} 19. Qe4 {[%clk 0:02:15.6]}
19... Nf8 {[%clk 0:00:40.3]} 20. Ng5 {[%clk 0:02:03.9]} 20... g6 {[%clk
0:00:25.5]} 21. Ndxf7+ {[%clk 0:02:04.7]} 21... Kg7 {[%clk 0:00:26.6]} 22. Qh4
{[%clk 0:02:05.4]} 22... Qxf7 {[%clk 0:00:18.8]} 23. Nxf7 {[%clk 0:02:07.3]}
23... Kxf7 {[%clk 0:00:20.2]} 24. Rad1 {[%clk 0:02:07.5]} 24... Kg7 {[%clk
0:00:13.5]} 25. Rxd4 {[%clk 0:02:05.9]} 25... Nxh7 {[%clk 0:00:14.2]} 26. Qg4
{[%clk 0:02:00.8]} 26... Re8 {[%clk 0:00:12.3]} 27. Re3 {[%clk 0:02:01.5]} 27...
Rac8 {[%clk 0:00:11.1]} 28. h4 {[%clk 0:02:00.4]} 28... Rc1+ {[%clk 0:00:09.4]}
29. Kh2 {[%clk 0:02:00.7]} 29... Nxe3 {[%clk 0:00:07.4]} 30. Rd7+ {[%clk
0:01:59.6]} 30... Kh8 {[%clk 0:00:08.8]} 31. Qxg6 {[%clk 0:01:58.6]} 31... Nf1+
{[%clk 0:00:09.7]} 32. Kh3 {[%clk 0:01:59.6]} 32... Bxg2+ {[%clk 0:00:06.9]} 33.
Kg4 {[%clk 0:01:57.1]} 33... Rg8 {[%clk 0:00:06.6]} 34. Rxh7# {[%clk 0:01:55.9]}
1-0